[Event "10th Cherry Blossom Classic 2023"]
[Site "Dulles"]
[Date "2023.05.29"]
[Round "8.20"]
[White "Samuelson, Andrew"]
[Black "Shoykhet, Benjamin"]
[Result "1-0"]
[ECO "B37"]
[WhiteElo "2019"]
[BlackElo "1919"]
[Annotator "NA RC"]
[PlyCount "201"]
[EventDate "2023.05.24"]
[EventType "swiss"]
[EventCountry "USA"]
[SourceTitle "playchess.com"]
[Source "ChessBase"]
[SourceQuality "1"]
[TimeControl "5400+30"]

1. e4 {[%emt 0:00:03]} c5 {[%emt 0:00:03]} 2. Nf3 {[%emt 0:00:05]} Nc6 {[%emt 0:00:03]} 3. d4 {[%emt 0:00:11]} cxd4 {[%emt 0:00:04]} 4. Nxd4 {[%emt 0:00:06]} g6 {[%emt 0:00:03]} 5. c4 {[%emt 0:00:06]} Nf6 {[%emt 0:00:03]} 6. Nc3 {[%emt 0:00:06]} d6 {[%emt 0:00:03]} 7. Nc2 {[%emt 0:00:11]} Bg7 {[%emt 0:00:08]} 8. Be2 {[%emt 0:00:06]} O-O {[%emt 0:00:12]} 9. O-O {[%emt 0:00:06]} a5 {[%emt 0:00:41]} 10. Be3 {[%emt 0:00:40]} a4 {[%emt 0:00:20]} 11. Rc1 {[%emt 0:00:15]} Qa5 {[%emt 0:00:26]} 12. Na3 {[%emt 0:01:08]} Be6 {[%emt 0:03:52]} 13. Nab5 {[%emt 0:04:32]} Rfc8 {[%emt 0:00:50]} 14. f4 {[%emt 0:01:36]} Qb4 {[%emt 0:03:05]} 15. a3 {[%emt 0:00:23]} Qb3 {[%emt 0:01:30]} 16. Qxb3 {[%emt 0:01:57]} axb3 {[%emt 0:00:06]} 17. f5 {[%emt 0:01:55]} gxf5 {[%emt 0:01:27]} 18. exf5 {[%emt 0:00:06]} Bd7 {[%emt 0:00:07]} 19. g4 {[%emt 0:05:07]} Ne5 {[%emt 0:04:44]} 20. g5 {[%emt 0:00:12]} Nfg4 {[%emt 0:00:14]} 21. Bd4 {[%emt 0:00:41]} Rxc4 {[%emt 0:01:10]} 22. Bxc4 {[%emt 0:00:20]} Nxc4 {[%emt 0:00:04]} 23. Bxg7 {[%emt 0:00:16]} Kxg7 {[%emt 0:00:07]} 24. Rf4 {[%emt 0:03:16]} Nge5 {[%emt 0:01:14]} 25. f6+ {[%emt 0:02:25]} exf6 {[%emt 0:01:15]} 26. Rxf6 {[%emt 0:00:19]} Nxb2 {[%emt 0:18:19]} 27. Rb1 {[%emt 0:00:37]} Nbc4 {[%emt 0:03:01]} 28. Rxb3 {[%emt 0:00:27]} Nd2 {[%emt 0:00:15]} 29. Rb4 {[%emt 0:00:49]} Ndf3+ {[%emt 0:00:10]} 30. Kg2 {[%emt 0:01:12]} Nxg5 {[%emt 0:00:28]} 31. Rxd6 {[%emt 0:00:20]} Bc6+ {[%emt 0:00:29]} 32. Kg3 {[%emt 0:00:41]} Ne6 {[%emt 0:05:09]} 33. a4 {[%emt 0:00:55]} Rg8 {[%emt 0:01:29]} 34. Ne4 {[%emt 0:04:19]} Kf8+ {[%emt 0:00:55]} 35. Kf2 {[%emt 0:00:07]} Ke7 {[%emt 0:00:25]} 36. Nbc3 {[%emt 0:04:05]} f5 {[%emt 0:02:19]} 37. Rxc6 {[%emt 0:00:35]} Nd3+ {[%emt 0:01:22]} 38. Kf1 {[%emt 0:00:10]} Nxb4 {[%emt 0:00:27]} 39. Rb6 {[%emt 0:00:04]} fxe4 {[%emt 0:01:27]} 40. Rxb7+ {[%emt 0:00:11]} Kd6 {[%emt 0:01:56]} 41. Rxb4 {[%emt 0:00:05]} e3 {[%emt 0:00:24]} 42. Re4 {[%emt 0:00:38]} Rf8+ {[%emt 0:01:35]} 43. Kg2 {[%emt 0:00:40]} Nf4+ {[%emt 0:03:07]} 44. Kg3 {[%emt 0:00:39]} Nh5+ {[%emt 0:00:28]} 45. Kh3 {[%emt 0:00:19]} Nf4+ {[%emt 0:02:04]} 46. Kg4 {[%emt 0:00:09]} Ng2 {[%emt 0:03:23]} 47. Kg3 {[%emt 0:00:47]} Rg8+ {[%emt 0:00:25]} 48. Kf3 {[%emt 0:00:29]} Ne1+ {[%emt 0:01:18]} 49. Kxe3 {[%emt 0:00:23]} Rg2 {[%emt 0:00:20]} 50. Rh4 {[%emt 0:00:44]} Rg7 {[%emt 0:02:50]} 51. Ke2 {[%emt 0:02:10]} Ng2 {[%emt 0:00:26]} 52. Re4 {[%emt 0:00:51]} Rf7 {[%emt 0:00:23]} 53. a5 {[%emt 0:01:02]} Nf4+ {[%emt 0:00:09]} 54. Kd2 {[%emt 0:00:30]} Ne6 {[%emt 0:01:03]} 55. a6 {[%emt 0:00:55]} Nc5 {[%emt 0:00:21]} 56. Rh4 {[%emt 0:02:15]} Nxa6 {[%emt 0:00:44]} 57. Rh6+ {[%emt 0:00:04]} Ke5 {[%emt 0:00:04]} 58. Rxa6 {[%emt 0:00:04]} Rf2+ {[%emt 0:00:03]} 59. Ke3 {[%emt 0:00:12]} Rxh2 {[%emt 0:00:05]} 60. Ra5+ {[%emt 0:00:06]} Ke6 {[%emt 0:00:08]} 61. Ne4 {[%emt 0:00:06]} Rh4 {[%emt 0:01:48]} 62. Kd4 {[%emt 0:00:07]} Rh1 {[%emt 0:00:22]} 63. Re5+ {[%emt 0:00:15]} Kf7 {[%emt 0:00:08]} 64. Rf5+ {[%emt 0:00:16]} Ke6 {[%emt 0:00:43]} 65. Rf6+ {[%emt 0:00:03]} Ke7 {[%emt 0:00:07]} 66. Ra6 {[%emt 0:00:05]} Rh5 {[%emt 0:00:11]} 67. Nd6 {[%emt 0:01:05]} Ke6 {[%emt 0:00:59]} 68. Ne4+ {[%emt 0:00:08]} Ke7 {[%emt 0:00:17]} 69. Nf6 {[%emt 0:00:53]} Rh1 {[%emt 0:01:43]} 70. Ke5 {[%emt 0:00:23]} Re1+ {[%emt 0:00:16]} 71. Ne4 {[%emt 0:00:04]} Kf7 {[%emt 0:00:58]} 72. Rf6+ {[%emt 0:00:24]} Kg7 {[%emt 0:00:07]} 73. Rf4 {[%emt 0:00:09]} Kg6 {[%emt 0:00:32]} 74. Rg4+ {[%emt 0:00:09]} Kf7 {[%emt 0:00:13]} 75. Rg2 {[%emt 0:00:09]} Kf8 {[%emt 0:01:44]} 76. Kf5 {[%emt 0:01:12]} Rf1+ {[%emt 0:00:21]} 77. Ke6 {[%emt 0:00:11]} Re1 {[%emt 0:00:12]} 78. Rg4 {[%emt 0:00:16]} Re3 {[%emt 0:00:23]} 79. Kf5 {[%emt 0:00:16]} Rf3+ {[%emt 0:00:37]} 80. Ke5 {[%emt 0:00:11]} Re3 {[%emt 0:00:15]} 81. Rg1 {[%emt 0:00:33]} Kf7 {[%emt 0:00:26]} 82. Kf4 {[%emt 0:01:03]} Ra3 {[%emt 0:00:43]} 83. Ng5+ {[%emt 0:00:14]} Kg6 {[%emt 0:39:33]} 84. Nf3+ {[%emt 0:00:07]} Kf6 {[%emt 0:00:30]} 85. Nd2 {[%emt 0:00:13]} Ra5 {[%emt 0:00:00]} 86. Ne4+ {[%emt 0:00:06]} Kf7 {[%emt 0:00:00]} 87. Rh1 {[%emt 0:00:14]} Kg6 {[%emt 0:00:00]} 88. Rb1 {[%emt 0:00:09]} Kf7 {[%emt 0:00:00]} 89. Ng5+ {[%emt 0:00:15]} Kg7 {[%emt 0:00:00]} 90. Rb7+ {[%emt 0:00:08]} Kg6 {[%emt 0:00:00]} 91. Rb6+ {[%emt 0:00:38]} Kg7 {[%emt 0:00:00]} 92. Nf3 {[%emt 0:00:11]} Ra1 {[%emt 0:00:00]} 93. Kf5 {[%emt 0:00:11]} Rf1 {[%emt 0:00:00]} 94. Rb7+ {[%emt 0:00:03]} Kh6 {[%emt 0:00:00]} 95. Kg4 {[%emt 0:00:13]} Kg6 {[%emt 0:00:00]} 96. Ne5+ {[%emt 0:00:33]} Kh6 {[%emt 0:00:00]} 97. Re7 {[%emt 0:00:23]} Rf6 {[%emt 0:00:00]} 98. Nf3 {[%emt 0:00:53]} Kg6 {[%emt 0:00:00]} 99. Nh4+ {[%emt 0:00:05]} Kh6 {[%emt 0:00:00]} 100. Nf5+ {[%emt 0:00:05]} Kg6 {[%emt 0:00:00]} 101. Rg7# {[%emt 0:00:20]} 1-0

[Event "10th Cherry Blossom Classic 2023"]
[Site "Dulles"]
[Date "2023.05.30"]
[Round "9.1"]
[White "Durarbayli, Vasif"]
[Black "Matviishen, Viktor"]
[Result "1/2-1/2"]
[ECO "B92"]
[WhiteElo "2627"]
[BlackElo "2538"]
[Annotator "TA"]
[PlyCount "112"]
[EventDate "2023.05.24"]
[EventType "swiss"]
[EventCountry "USA"]
[SourceTitle "playchess.com"]
[Source "ChessBase"]
[SourceQuality "1"]
[TimeControl "5400+30"]

{[%evp 16,112,11,14,14,18,20,8,9,11,14,5,17,14,20,16,29,15,16,29,28,0,0,-12,-10,-8,-8,-15,-7,-4,-6,-8,-4,-22,-24,-25,-29,-29,-25,-22,-22,-22,-22,-22,-22,-25,-22,-35,-28,-35,-29,-35,-29,-29,-29,-29,-29,-29,-29,-41,-29,-29,-29,-36,-29,-29,-22,-29,-29,-43,-22,-22,-22,-16,-15,-15,-15,-22,-22,-22,-22,-29,-29,-36,0,0,0,-16,0,0,0,0,0,-20,0,0,0,-15,0]} 1. e4 {[%emt 0:02:38] Estremera,S/Mellado,J} c5 {[%emt 0:00:33]} 2. Nf3 {[%emt 0:00:17]} d6 {[%emt 0:00:05]} 3. d4 {[%emt 0:00:05]} cxd4 {[%emt 0:00:04]} 4. Nxd4 {[%emt 0:00:03]} Nf6 {[%emt 0:00:06]} 5. Nc3 {[%emt 0:00:04]} a6 {[%emt 0:00:05]} 6. Be2 {[%emt 0:00:03]} e5 {[%emt 0:00:06]} 7. Nb3 {[%emt 0:00:03]} Be7 {[%emt 0:00:05]} 8. O-O {[%emt 0:00:04]} O-O {[%emt 0:00:14]} 9. Re1 {[%emt 0:00:05]} Be6 {[%emt 0:00:32] B92: Sicilian Najdorf: 6 Be2.} 10. Bf3 {[%emt 0:00:07]} Qc7 {[%emt 0:02:19]} 11. Be3 {[%emt 0:04:06]} Rc8 {[%emt 0:01:48]} 12. a4 {[%emt 0:04:26]} h6 {[%emt 0:00:56]} 13. a5 {[%emt 0:03:22]} Nbd7 {[%emt 0:00:21]} 14. h3 {[%emt 0:03:36] 14.Qd2 is vanishing.} b5 {[%emt 0:08:51]} 15. axb6 {[%emt 0:00:17]} Nxb6 {[%emt 0:00:04]} 16. Na5 {[%emt 0:00:06]} Nc4 {[%emt 0:00:49]} 17. Nxc4 {[%emt 0:00:06]} Bxc4 {[%emt 0:00:02]} 18. Na4 {[%emt 0:00:22] [#] And now Nb6 would win.} Rab8 {[%emt 0:02:05] [#] Prevents Nb6.} 19. b3 $146 {[%emt 0:00:07]} ({Predecessor:} 19. Bc1 Qb7 20. b3 Be6 21. Bb2 Rc6 22. Qd3 Rbc8 23. Re2 Nd7 24. Qd1 Bg5 25. c4 {½-½ Bruzon Batista,L (2652)-Anand,V (2803) Leon 19th rapid 2006 (1.1)}) 19... Bb5 {[%emt 0:01:29]} 20. c4 {[%emt 0:09:13]} Bxa4 {[%emt 0:00:08]} 21. Rxa4 {[%emt 0:01:26]} Qb7 {[%emt 0:00:05][%csl LRb3,LRe4]} 22. Qa1 {[%emt 0:06:58]} Qxb3 {[%emt 0:01:08]} ({Don't play} 22... Nxe4 23. Bxe4 (23. Rxa6 Ra8 $16) 23... Qxe4 24. Ba7 $16 (24. Rxa6 Qd3 $15)) 23. Rc1 {[%emt 0:01:28] [#]} a5 $1 {[%emt 0:11:41][%mdl 64] Deflection} 24. Rxa5 {[%emt 0:05:23]} (24. Ra3 Qb2) 24... Rxc4 {[%emt 0:00:19]} 25. Rxc4 {[%emt 0:00:17]} Qxc4 {[%emt 0:00:02]} 26. Ra8 {[%emt 0:00:05]} Rxa8 {[%emt 0:14:10]} 27. Qxa8+ {[%emt 0:00:03]} Kh7 {[%emt 0:00:09]} 28. Qb7 {[%emt 0:03:23]} Bd8 {[%emt 0:00:05]} 29. Qa8 {[%emt 0:02:24] Inhibits Ba5.} Qc7 {[%emt 0:02:23]} 30. g3 {[%emt 0:03:49]} g6 {[%emt 0:00:35]} 31. Kg2 {[%emt 0:00:52]} Kg7 {[%emt 0:00:41]} (31... Qd7 {simplifies} 32. h4 Kg7 33. Qa7 Qxa7 34. Bxa7 h5) 32. h4 {[%emt 0:04:19]} Be7 {[%emt 0:01:59]} (32... Qd7 {simplifies} 33. Qa7 Qxa7 34. Bxa7 h5) 33. Kg1 {[%emt 0:02:00]} Qc2 {[%emt 0:06:08]} 34. Qb7 {[%emt 0:01:21]} Bd8 {[%emt 0:00:50]} 35. Qb8 {[%emt 0:00:56][%csl LRd6,LRd8]} Qc7 {[%emt 0:00:05]} 36. Qa8 {[%emt 0:00:08]} Qd7 {[%emt 0:00:57]} 37. Bg2 {[%emt 0:02:21]} Be7 {[%emt 0:03:11]} 38. Bf3 {[%emt 0:00:09]} h5 {[%emt 0:00:45]} (38... Qc7 {with more complications.} 39. Kg2 h5 40. Bg5 Qc2) 39. Bg5 {[%emt 0:01:15]} Ne8 {[%emt 0:10:35] Strongly threatening ...Bxg5.} 40. Be3 {[%emt 0:00:33]} Qb5 {[%emt 0:00:13]} 41. Qc8 {[%emt 0:04:18]} Nf6 {[%emt 0:04:34]} 42. Bg5 {[%emt 0:02:06]} Ng8 {[%emt 0:00:09]} (42... Qd3 {seems wilder.} 43. Kg2 d5 44. Qc6 dxe4 45. Bxf6+ Bxf6 46. Bxe4 Qd4) 43. Be3 {[%emt 0:02:46]} Qb3 {[%emt 0:01:06]} 44. Kg2 {[%emt 0:00:31]} Qe6 {[%emt 0:00:37]} 45. Qb7 {[%emt 0:02:20]} Nf6 {[%emt 0:02:18]} 46. Bd1 {[%emt 0:01:46]} Qd7 {[%emt 0:01:31]} (46... d5 {looks sharper.} 47. Bb3 Nxe4 48. Bxd5 Nd6) 47. Qxd7 {[%emt 0:02:12]} Nxd7 $11 {[%emt 0:00:02][%mdl 4096] Endgame KBB-KBN} 48. Kh3 {[%emt 0:00:15]} Nf6 {[%emt 0:02:12]} 49. f3 {[%emt 0:00:33]} Ng8 {[%emt 0:02:36]} 50. g4 {[%emt 0:01:15] The position is equal.} Nf6 {[%emt 0:00:29]} 51. Bc2 {[%emt 0:01:45]} (51. Bg5 $5) 51... Nh7 {[%emt 0:00:53]} 52. gxh5 {[%emt 0:02:17]} gxh5 {[%emt 0:00:04]} 53. f4 {[%emt 0:00:06]} Nf6 {[%emt 0:02:21]} 54. f5 {[%emt 0:02:05]} Ng4 {[%emt 0:00:05]} 55. Bb6 {[%emt 0:00:33]} Nf6 {[%emt 0:01:32]} 56. Be3 {[%emt 0:02:10]} Ng4 {[%emt 0:00:37] Weighted Error Value: White=0.04 (flawless) /Black=0.04 (flawless)} 1/2-1/2

[Event "10th Cherry Blossom Classic 2023"]
[Site "Dulles"]
[Date "2023.05.30"]
[Round "9.2"]
[White "Nyzhnyk, Illya"]
[Black "Antipov, Mikhail Al."]
[Result "1/2-1/2"]
[ECO "E11"]
[WhiteElo "2644"]
[BlackElo "2588"]
[Annotator "TA"]
[PlyCount "69"]
[EventDate "2023.05.24"]
[EventType "swiss"]
[EventCountry "USA"]
[SourceTitle "playchess.com"]
[Source "ChessBase"]
[SourceQuality "1"]
[TimeControl "5400+30"]

{[%evp 15,69,0,10,0,6,0,0,-17,-13,-20,-8,-35,-24,-39,-45,-47,-35,-33,-4,-16,0,-3,0,-73,-83,-85,-59,-105,-105,-109,-107,-102,-50,-48,-56,-55,-33,-61,0,0,0,0,0,0,0,-28,-18,-18,-13,-13,0,0,0,0,0,0]} 1. d4 {[%emt 0:00:11]} Nf6 {[%emt 0:05:28]} 2. c4 {[%emt 0:00:12]} e6 {[%emt 0:00:29]} 3. g3 {[%emt 0:00:23]} d5 {[%emt 0:00:10]} 4. Bg2 {[%emt 0:00:09]} Bb4+ {[%emt 0:00:04]} 5. Bd2 {[%emt 0:00:08]} Be7 {[%emt 0:00:04]} 6. Nf3 {[%emt 0:00:43]} O-O {[%emt 0:00:07]} 7. O-O {[%emt 0:00:12]} c6 {[%emt 0:00:18]} 8. Qc2 {[%emt 0:00:14]} Nbd7 {[%emt 0:00:05]} 9. Rc1 {[%emt 0:00:59] E11: Bogo-Indian.} a5 {[%emt 0:05:13]} 10. a4 {[%emt 0:06:19] 10.e3 is a critical line.} Ne4 {[%emt 0:04:02]} 11. Bf4 {[%emt 0:06:42]} g5 {[%emt 0:03:15]} 12. Be3 {[%emt 0:06:03]} f5 {[%emt 0:08:06]} 13. Nc3 {[%emt 0:00:40] [#]} f4 $146 {[%emt 0:14:53]} ({Predecessor:} 13... Bf6 14. Rd1 Qe7 15. Ne1 Bg7 16. Qc1 f4 17. gxf4 gxf4 18. Bd2 Nxf2 19. Kxf2 Bxd4+ {0-1 Li,D (2535)-Nguyen,N (2639) Asian Continental blitz op 2019 (2)}) 14. gxf4 {[%emt 0:01:57]} gxf4 {[%emt 0:00:01]} 15. Bd2 {[%emt 0:00:08]} Nxd2 {[%emt 0:00:04]} 16. Qxd2 {[%emt 0:00:30]} Bd6 {[%emt 0:00:17]} 17. Kh1 {[%emt 0:04:40]} Qf6 {[%emt 0:00:35]} 18. Rg1 {[%emt 0:13:07]} Kh8 {[%emt 0:00:28]} 19. Rae1 {[%emt 0:05:21] [#]} (19. Bh3 $11 {remains equal.}) 19... Qh6 $1 $17 {[%emt 0:03:08]} 20. Bf1 {[%emt 0:04:21]} Rf5 {[%emt 0:09:16]} 21. e4 {[%emt 0:02:58]} (21. Rg3 $15 {is superior.}) 21... fxe3 {[%emt 0:00:21]} 22. Qxe3 {[%emt 0:00:06] [#]} Bf4 {[%emt 0:04:51]} 23. Qd3 {[%emt 0:10:03]} Rh5 {[%emt 0:04:11]} (23... Nf6 $17 {Strongly threatening ...dxc4.} 24. Rg2 Bd7) 24. Rg2 $15 {[%emt 0:00:25]} e5 $1 {[%emt 0:07:50][%cal Be6e5,Be5e4][%mdl 32]} 25. Ne2 $1 {[%emt 0:12:11] Black must now prevent cxd5.} e4 {[%emt 0:02:30]} 26. Nxf4 {[%emt 0:00:04]} Qxf4 {[%emt 0:07:39]} (26... exd3 $15 27. Re8+ Nf8 28. Nxh5 Bg4) 27. Qe3 $11 {[%emt 0:00:41]} Qxe3 {[%emt 0:14:59]} (27... Qxf3 28. Qxf3 Rh6 29. Qf7 Rg6 30. cxd5 Nf6 31. Rxg6 hxg6 32. Qxf6+ Kh7 33. Rxe4) 28. Rxe3 {[%emt 0:00:06] aiming for Ng5.} Rf5 {[%emt 0:00:07]} (28... exf3 $2 {gets mated.} 29. Re8+) 29. Ng5 {[%emt 0:03:03] Threatens to win with cxd5.} Nf8 {[%emt 0:00:07]} 30. Reg3 {[%emt 0:07:59][%cal Og5f7] Nf7+! would kill now.} (30. cxd5 $5 cxd5 31. Reg3 $11) 30... Be6 {[%emt 0:00:35] Dodges Nf7+} 31. Be2 {[%emt 0:00:20] The position is equal.} Rf6 {[%emt 0:02:03]} ({Resist} 31... dxc4 32. Nxe6 Nxe6 33. Bxc4 $14) 32. cxd5 {[%emt 0:05:33]} cxd5 {[%emt 0:01:45]} 33. f3 $1 {[%emt 0:00:04]} h6 {[%emt 0:00:55]} 34. Nxe6 {[%emt 0:00:04]} Nxe6 {[%emt 0:00:03]} 35. fxe4 {[%emt 0:00:06] Weighted Error Value: White=0.10 (very precise) /Black=0.06 (flawless)} 1/2-1/2

[Event "10th Cherry Blossom Classic 2023"]
[Site "Dulles"]
[Date "2023.05.30"]
[Round "9.3"]
[White "Khanin, Semen"]
[Black "Burke, John M"]
[Result "1/2-1/2"]
[ECO "D85"]
[WhiteElo "2566"]
[BlackElo "2583"]
[Annotator "TA"]
[PlyCount "55"]
[EventDate "2023.05.24"]
[EventType "swiss"]
[EventCountry "USA"]
[SourceTitle "playchess.com"]
[Source "ChessBase"]
[SourceQuality "1"]
[TimeControl "5400+30"]

{[%evp 14,55,17,10,9,11,21,26,25,7,11,19,7,15,16,10,8,9,11,11,15,12,11,0,0,0,0,0,0,0,10,14,12,11,8,13,14,0,0,0,0,0,0,-3]} 1. d4 {[%emt 0:03:05]} Nf6 {[%emt 0:01:49]} 2. c4 {[%emt 0:00:05]} g6 {[%emt 0:00:32]} 3. Nc3 {[%emt 0:00:14]} d5 {[%emt 0:00:06]} 4. cxd5 {[%emt 0:00:07]} Nxd5 {[%emt 0:00:05]} 5. Bd2 {[%emt 0:00:14]} Bg7 {[%emt 0:00:38]} 6. e4 {[%emt 0:00:06]} Nxc3 {[%emt 0:00:05]} 7. Bxc3 {[%emt 0:00:04]} O-O {[%emt 0:00:15]} 8. Qd2 {[%emt 0:00:06]} c5 {[%emt 0:01:15][%cal Rc5d4] D85: Exchange Grünfeld: Unusual White 7th moves and lines with 7 Nf3.} 9. d5 {[%emt 0:00:09]} Bxc3 {[%emt 0:00:21]} 10. bxc3 {[%emt 0:00:17]} Qd6 {[%emt 0:00:49] White has an edge.} 11. f4 {[%emt 0:00:06]} e6 {[%emt 0:00:40] The position is equal.} 12. Nf3 {[%emt 0:00:12]} exd5 {[%emt 0:00:31]} 13. Bc4 {[%emt 0:00:12]} d4 {[%emt 0:02:00] [#]} 14. cxd4 $146 {[%emt 0:12:09]} ({Predecessor:} 14. O-O Nc6 15. Ng5 Kg7 16. Rae1 Qe7 17. Nxf7 Rxf7 18. Bxf7 Qxf7 19. f5 gxf5 20. exf5 {½-½ Bitan,B (2395)-Dukic,Z (2218) Calgary 13th 2022 (2)}) 14... cxd4 {[%emt 0:00:05]} 15. O-O {[%emt 0:00:18] Threatening f5.} (15. f5 {is interesting.} gxf5 16. O-O Nc6 17. Rae1) 15... Nc6 {[%emt 0:04:17][%cal Bb8c6,Bc6e5,Be5g4,Bg4e3][%mdl 32] [#]} 16. f5 $1 {[%emt 0:15:25] Inhibits Be6.} gxf5 {[%emt 0:06:41]} 17. Rae1 {[%emt 0:01:58]} fxe4 {[%emt 0:03:59]} 18. Ng5 {[%emt 0:05:58]} Ne5 {[%emt 0:13:55]} 19. Bb3 {[%emt 0:11:00]} Ng4 {[%emt 0:17:49][%csl Gg4][%cal Rd6h2]} 20. Qf4 {[%emt 0:19:09] The board is on fire.} Qxf4 {[%emt 0:01:23]} 21. Rxf4 {[%emt 0:01:12][%cal Rg5f7]} Ne3 {[%emt 0:11:06]} 22. Nxf7 {[%emt 0:05:26] Strongly threatening Nd6+.} Bf5 {[%emt 0:06:10] [#]} 23. Rxe3 $1 {[%emt 0:04:18]} dxe3 {[%emt 0:00:03]} 24. Rxf5 {[%emt 0:00:30][%cal Rf5g5]} Kg7 {[%emt 0:00:10]} 25. Kf1 {[%emt 0:02:20][%mdl 1024] White has compensation.} Rad8 {[%emt 0:02:43] ...Rd2 is the strong threat.} 26. Ke2 {[%emt 0:04:44] And now Rg5+ would win.} Rd2+ {[%emt 0:05:19]} 27. Kxe3 {[%emt 0:00:05]} Rxg2 {[%emt 0:00:08]} 28. Rh5 {[%emt 0:03:06] A rather calm draw.   Weighted Error Value: White=0.03 (flawless) /Black=0.02 (flawless)} 1/2-1/2

[Event "10th Cherry Blossom Classic 2023"]
[Site "Dulles"]
[Date "2023.05.29"]
[Round "9.4"]
[White "Hilby, Craig"]
[Black "Kantor, Gergely"]
[Result "1/2-1/2"]
[ECO "C48"]
[WhiteElo "2401"]
[BlackElo "2535"]
[Annotator "TA"]
[PlyCount "50"]
[EventDate "2023.05.24"]
[EventType "swiss"]
[EventCountry "USA"]
[SourceTitle "playchess.com"]
[Source "ChessBase"]
[SourceQuality "1"]
[TimeControl "5400+30"]

{[%evp 10,50,43,31,22,39,32,41,38,27,71,75,96,104,81,60,63,0,0,0,0,0,0,0,0,0,0,0,0,0,0,0,0,0,0,0,0,0,0,0,0,0,0]} 1. e4 {[%emt 0:00:04]} e5 {[%emt 0:04:55]} 2. Nf3 {[%emt 0:00:07]} Nc6 {[%emt 0:00:13]} 3. Nc3 {[%emt 0:00:07]} Nf6 {[%emt 0:00:13]} 4. Bb5 {[%emt 0:00:08]} Nd4 {[%emt 0:01:26]} 5. Bc4 {[%emt 0:00:34]} Bc5 {[%emt 0:00:40]} 6. Nxe5 {[%emt 0:00:55]} Qe7 {[%emt 0:02:07] C48: Four Knights: 4 Bb5, replies other than 4...Bb4.} 7. Nf3 {[%emt 0:00:46]} (7. Bxf7+ Kf8 8. Nd3 (8. f4 $2 d6 $19) 8... Kxf7 $17) 7... d5 $1 {[%emt 0:02:28] Against d3} ({Weaker is} 7... Nxe4 8. Nd5 Nxf3+ 9. gxf3 $16 (9. Qxf3 Ng5+ $11)) 8. Bxd5 {[%emt 0:00:57]} Bg4 {[%emt 0:05:26] aiming for ...Nxd5. White is slightly better.} 9. d3 {[%emt 0:00:47]} (9. Bxb7 $2 Rb8 10. d3 Rxb7 $19) 9... O-O-O {[%emt 0:04:50] [#]} 10. Be3 $1 {[%emt 0:02:43]} Nxd5 {[%emt 0:05:35]} 11. Nxd5 {[%emt 0:00:09]} ({Stronger than} 11. exd5 Bxf3 12. gxf3 Nf5 $15) 11... Rxd5 {[%emt 0:01:34]} 12. exd5 {[%emt 0:00:21] Kd2 is the strong threat.} Re8 {[%emt 0:01:54] Strongly threatening ...Qf6.} 13. c3 {[%emt 0:02:04]} (13. O-O $14 Bxf3 14. gxf3) 13... Nxf3+ $11 {[%emt 0:13:28] The position is equal.} 14. gxf3 {[%emt 0:00:10]} Qh4 {[%emt 0:01:28]} 15. Kd2 {[%emt 0:00:13][%cal Be1d2,Bd2c1,Bc1b1,Bb1a2][%mdl 32]} Rxe3 $1 {[%emt 0:01:47][%mdl 64] [#] Remove Defender} 16. fxe3 {[%emt 0:00:23]} Qf2+ {[%emt 0:00:10]} 17. Kc1 {[%emt 0:00:10]} Bxf3 {[%emt 0:03:45]} 18. Qe1 {[%emt 0:00:45]} Bxe3+ {[%emt 0:02:13] A strong pair of Bishops.} 19. Kb1 {[%emt 0:00:09] Qxf2 would be deadly.} Bxh1 {[%emt 0:02:18]} 20. Qxh1 {[%emt 0:00:11][%mdl 4096] Endgame KQR-KQB} Qe2 $1 {[%emt 0:02:40][%cal Re2d3] [#]} 21. a4 $146 {[%emt 0:00:08] Threatens to win with Qe4.} ({Predecessor:} 21. a3) 21... Qxd3+ {[%emt 0:00:28]} 22. Ka2 {[%emt 0:00:05]} Qc4+ {[%emt 0:01:41]} 23. Kb1 {[%emt 0:00:10]} Qd3+ {[%emt 0:02:01]} 24. Ka2 {[%emt 0:00:22]} Qc4+ {[%emt 0:02:31]} 25. Kb1 {[%emt 0:00:09]} Qd3+ {[%emt 0:00:52] An exciting game.   Weighted Error Value: White=0.06 (flawless) /Black=0.04 (flawless)} 1/2-1/2

[Event "10th Cherry Blossom Classic 2023"]
[Site "Dulles"]
[Date "2023.05.29"]
[Round "9.5"]
[White "Stearman, Josiah"]
[Black "Bora, Safal"]
[Result "1/2-1/2"]
[ECO "C13"]
[WhiteElo "2385"]
[BlackElo "2462"]
[Annotator "TA"]
[PlyCount "43"]
[EventDate "2023.05.24"]
[EventType "swiss"]
[EventCountry "USA"]
[SourceTitle "playchess.com"]
[Source "ChessBase"]
[SourceQuality "1"]
[TimeControl "5400+30"]

{[%evp 14,43,35,35,41,19,10,0,10,12,5,0,0,0,0,0,0,0,0,0,0,0,0,0,0,0,0,0,0,0,0,-791]} 1. e4 {[%emt 1:31:00]} e6 {[%emt 0:02:22]} 2. d4 {[%emt 0:00:00]} d5 {[%emt 0:00:04]} 3. Nc3 {[%emt 0:00:00]} Nf6 {[%emt 0:00:21]} 4. Bg5 {[%emt 0:00:00]} dxe4 {[%emt 0:00:32]} 5. Nxe4 {[%emt 0:00:00]} Be7 {[%emt 0:01:02]} 6. Bxf6 {[%emt 0:00:00]} gxf6 {[%emt 0:00:19]} 7. Nf3 {[%emt 0:00:00]} f5 {[%emt 0:00:07]} 8. Nc3 {[%emt 0:00:00]} a6 {[%emt 0:00:08] C13: French: Classical System: 4 Bg5 Be7, Alekhine-Chatard Attack.} 9. g3 {[%emt 0:00:00]} b5 {[%emt 0:04:33] The position is equal.} 10. Bg2 {[%emt 0:00:00] [#] Ne5 is the strong threat.} Bb7 {[%emt 0:00:11]} 11. O-O {[%emt 0:00:00][%cal Od4d5] Black should prevent d5!} Bf6 {[%emt 0:00:33][%cal Oc7c5]} 12. Re1 {[%emt 0:00:00]} O-O {[%emt 0:06:43]} 13. Ne5 {[%emt 0:00:00]} Bxg2 {[%emt 0:03:40]} 14. Kxg2 {[%emt 0:00:00]} Bxe5 {[%emt 0:00:10]} 15. Qf3 {[%emt 0:00:00]} Nc6 {[%emt 0:21:45]} 16. dxe5 {[%emt 0:00:00]} Nd4 {[%emt 0:00:04][%csl LRc2,LRf3] [#]} 17. Qh5 $146 {[%emt 0:00:00] Threatens to win with Rad1.} ({Predecessor:} 17. Qf4 c5 18. Rad1 Qe7 19. Rd2 Rad8 20. Ne2 Qb7+ 21. Kh3 Nf3 22. Rxd8 Rxd8 23. Ng1 Nxg1+ 24. Rxg1 {0-1 Moradi,A (2365)-Rastbod,A (2287) Avicenna op 16th 2019 (7)}) 17... c5 {[%emt 0:04:36]} 18. Rad1 {[%emt 0:00:00] Strongly threatening Ne2.} Qe7 {[%emt 0:00:52]} 19. Ne2 {[%emt 0:00:00]} Nxc2 {[%emt 0:02:57]} 20. Rd7 {[%emt 0:00:00][%mdl 64] [#] Deflection} Nxe1+ {[%emt 0:00:08][%mdl 8192]} (20... Ne3+ $11 21. fxe3 Qxd7 22. Qg5+ Kh8 23. Qf6+ Kg8 24. Qg5+ Kh8 25. Qf6+ Kg8 26. Qg5+) 21. Kf1 $19 {[%emt 0:00:00]} Qxd7 {[%emt 0:00:35]} 22. Qg5+ {[%emt 0:00:00][%mdl 32768] Weighted Error Value: White=0.03 (flawless) /Black=0.00 (flawless) . An unexpected result.} 1/2-1/2